[Event "*** Titled Tuesday Blitz"]
[Site "Chess.com"]
[Date "2021.04.06"]
[Round "8"]
[White "SilviusTiberius"]
[Black "Murad_Ibrahimli"]
[Result "0-1"]
[WhiteElo "2620"]
[BlackElo "2825"]
[TimeControl "180+1"]
[EndTime "11:27:39 PDT"]
[Termination "Murad_Ibrahimli won by resignation"]

1. e4 {[%clk 0:03:00.9]} 1... c6 {[%clk 0:02:57.7]} 2. d4 {[%clk 0:03:00.7]}
2... d5 {[%clk 0:02:58.2]} 3. exd5 {[%clk 0:03:01.6]} 3... cxd5 {[%clk
0:02:58.8]} 4. Bd3 {[%clk 0:03:02.1]} 4... Nc6 {[%clk 0:02:59]} 5. c3 {[%clk
0:03:02.6]} 5... Qc7 {[%clk 0:02:59.1]} 6. Ne2 {[%clk 0:03:02.3]} 6... Bg4
{[%clk 0:02:55.1]} 7. O-O {[%clk 0:03:02.5]} 7... Nf6 {[%clk 0:02:53.4]} 8. Qe1
{[%clk 0:02:55.6]} 8... Bxe2 {[%clk 0:02:53.3]} 9. Qxe2 {[%clk 0:02:55.7]} 9...
e6 {[%clk 0:02:53.8]} 10. f4 {[%clk 0:02:52.5]} 10... Bd6 {[%clk 0:02:52.1]} 11.
g3 {[%clk 0:02:46.8]} 11... h5 {[%clk 0:02:38.4]} 12. Na3 {[%clk 0:02:28.5]}
12... a6 {[%clk 0:02:35.3]} 13. Nc2 {[%clk 0:02:27.9]} 13... h4 {[%clk
0:02:33.9]} 14. Ne3 {[%clk 0:02:28.4]} 14... hxg3 {[%clk 0:02:32.5]} 15. hxg3
{[%clk 0:02:29.3]} 15... O-O-O {[%clk 0:02:28.3]} 16. Kg2 {[%clk 0:02:21.1]}
16... Ne4 {[%clk 0:02:26.2]} 17. Bxe4 {[%clk 0:02:16.3]} 17... dxe4 {[%clk
0:02:27.1]} 18. d5 {[%clk 0:02:08.7]} 18... exd5 {[%clk 0:01:42.6]} 19. Nxd5
{[%clk 0:02:08.4]} 19... Qa5 {[%clk 0:01:42.9]} 20. Rd1 {[%clk 0:01:51]} 20...
f5 {[%clk 0:01:00.2]} 21. b4 {[%clk 0:01:44.5]} 21... Bxb4 {[%clk 0:00:41.4]}
22. cxb4 {[%clk 0:01:40.4]} 22... Nxb4 {[%clk 0:00:31.6]} 23. Qc4+ {[%clk
0:01:35]} 23... Kb8 {[%clk 0:00:23]} 24. Bd2 {[%clk 0:01:08.5]} 24... Qxd5
{[%clk 0:00:21.9]} 25. Qxb4 {[%clk 0:01:08.4]} 25... e3+ {[%clk 0:00:21.3]} 0-1

[Event "*** Titled Tuesday Blitz"]
[Site "Chess.com"]
[Date "2021.04.06"]
[Round "8"]
[White "DamianoLew95"]
[Black "GM_Crest"]
[Result "0-1"]
[WhiteElo "2565"]
[BlackElo "2713"]
[TimeControl "180+1"]
[EndTime "11:27:39 PDT"]
[Termination "GM_Crest won by resignation"]

1. d4 {[%clk 0:03:00.9]} 1... d5 {[%clk 0:02:57.9]} 2. Bf4 {[%clk 0:03:00]} 2...
Nf6 {[%clk 0:02:53.9]} 3. e3 {[%clk 0:02:59.9]} 3... e6 {[%clk 0:02:53.7]} 4. c3
{[%clk 0:02:58.9]} 4... Bd6 {[%clk 0:02:53.5]} 5. Bg3 {[%clk 0:02:57.2]} 5... c5
{[%clk 0:02:53.5]} 6. Nd2 {[%clk 0:02:57.4]} 6... O-O {[%clk 0:02:53.3]} 7. Ngf3
{[%clk 0:02:57]} 7... Qc7 {[%clk 0:02:53.7]} 8. Bd3 {[%clk 0:02:54.8]} 8... Nbd7
{[%clk 0:02:53.4]} 9. dxc5 {[%clk 0:02:53.7]} 9... Nxc5 {[%clk 0:02:53.3]} 10.
Bc2 {[%clk 0:02:51.7]} 10... b6 {[%clk 0:02:53.8]} 11. O-O {[%clk 0:02:50.8]}
11... Ba6 {[%clk 0:02:54.1]} 12. Re1 {[%clk 0:02:51.4]} 12... Nd3 {[%clk
0:02:54.2]} 13. Bxd3 {[%clk 0:02:51.7]} 13... Bxd3 {[%clk 0:02:54.9]} 14. Bxd6
{[%clk 0:02:50.4]} 14... Qxd6 {[%clk 0:02:54.8]} 15. Nb3 {[%clk 0:02:50.6]}
15... Bg6 {[%clk 0:02:49.8]} 16. Qd4 {[%clk 0:02:49.7]} 16... Rfd8 {[%clk
0:02:45.7]} 17. Rad1 {[%clk 0:02:47.9]} 17... Bh5 {[%clk 0:02:41.7]} 18. Rd3
{[%clk 0:02:32.9]} 18... Qc7 {[%clk 0:02:37.5]} 19. Qe5 {[%clk 0:02:28.5]} 19...
Qe7 {[%clk 0:02:34]} 20. Nbd2 {[%clk 0:02:19.9]} 20... Rac8 {[%clk 0:02:31.2]}
21. Rd4 {[%clk 0:02:17.8]} 21... Bg6 {[%clk 0:02:28.1]} 22. h3 {[%clk
0:02:06.4]} 22... Nd7 {[%clk 0:02:28]} 23. Qg3 {[%clk 0:01:54.9]} 23... Nc5
{[%clk 0:02:22.9]} 24. Nh4 {[%clk 0:01:44]} 24... e5 {[%clk 0:02:10.8]} 25. Nxg6
{[%clk 0:01:42.2]} 25... hxg6 {[%clk 0:02:10.4]} 26. Rg4 {[%clk 0:01:28.9]}
26... Nd3 {[%clk 0:02:10.1]} 27. Rb1 {[%clk 0:01:28.4]} 27... Qe6 {[%clk
0:02:07.3]} 28. Nf3 {[%clk 0:01:23.3]} 28... Rc4 {[%clk 0:01:51.2]} 29. Ng5
{[%clk 0:01:14.1]} 29... Qf6 {[%clk 0:01:46.2]} 30. Rxc4 {[%clk 0:00:22.2]}
30... dxc4 {[%clk 0:01:45.6]} 31. Ne4 {[%clk 0:00:22.8]} 31... Qf5 {[%clk
0:01:44.5]} 32. f3 {[%clk 0:00:23.1]} 32... Nc5 {[%clk 0:01:41.8]} 33. b4 {[%clk
0:00:22.3]} 33... Nxe4 {[%clk 0:01:40.8]} 34. fxe4 {[%clk 0:00:22.5]} 34... Qxe4
{[%clk 0:01:41.4]} 35. Rf1 {[%clk 0:00:23.1]} 35... Rd3 {[%clk 0:01:40]} 36. Kh2
{[%clk 0:00:22.9]} 36... Rxe3 {[%clk 0:01:36.3]} 37. Qg5 {[%clk 0:00:20.7]}
37... f6 {[%clk 0:01:35.1]} 38. Rxf6 {[%clk 0:00:20]} 38... gxf6 {[%clk
0:01:34.9]} 39. Qxf6 {[%clk 0:00:20.9]} 0-1

[Event "*** Titled Tuesday Blitz"]
[Site "Chess.com"]
[Date "2021.04.06"]
[Round "8"]
[White "Triumphmate"]
[Black "IriBu"]
[Result "0-1"]
[WhiteElo "2360"]
[BlackElo "2546"]
[TimeControl "180+1"]
[EndTime "11:27:39 PDT"]
[Termination "IriBu won by resignation"]

1. e4 {[%clk 0:03:00.9]} 1... c5 {[%clk 0:02:59.6]} 2. Nf3 {[%clk 0:03:01.2]}
2... a6 {[%clk 0:03:00.2]} 3. Nc3 {[%clk 0:03:00.5]} 3... d6 {[%clk 0:03:00]} 4.
d4 {[%clk 0:03:00.3]} 4... cxd4 {[%clk 0:03:00.9]} 5. Nxd4 {[%clk 0:03:01]} 5...
Nf6 {[%clk 0:03:01.7]} 6. f4 {[%clk 0:03:01.3]} 6... e5 {[%clk 0:03:01.3]} 7.
Nf3 {[%clk 0:03:01.7]} 7... Nc6 {[%clk 0:03:00.8]} 8. Bd3 {[%clk 0:03:02.2]}
8... Be7 {[%clk 0:02:56.3]} 9. O-O {[%clk 0:03:02.7]} 9... O-O {[%clk
0:02:56.2]} 10. Kh1 {[%clk 0:03:03]} 10... b5 {[%clk 0:02:56.1]} 11. a3 {[%clk
0:03:02.7]} 11... Bg4 {[%clk 0:02:52.6]} 12. Qe1 {[%clk 0:03:02.7]} 12... exf4
{[%clk 0:02:51.5]} 13. Bxf4 {[%clk 0:03:01.6]} 13... Bxf3 {[%clk 0:02:51.8]} 14.
Rxf3 {[%clk 0:03:02.5]} 14... Ne5 {[%clk 0:02:52.2]} 15. Rh3 {[%clk 0:03:02.3]}
15... Ng6 {[%clk 0:02:44.5]} 16. Bd2 {[%clk 0:03:00.5]} 16... Re8 {[%clk
0:02:42.1]} 17. Qf2 {[%clk 0:02:58.8]} 17... Rc8 {[%clk 0:02:41.1]} 18. Rf1
{[%clk 0:02:59.2]} 18... Rf8 {[%clk 0:02:27.2]} 19. Bg5 {[%clk 0:02:52.5]} 19...
Ng4 {[%clk 0:02:25.6]} 20. Qg3 {[%clk 0:02:47.3]} 20... Bxg5 {[%clk 0:02:15.3]}
21. Qxg4 {[%clk 0:02:47.6]} 21... Bf6 {[%clk 0:02:14.4]} 22. Nd5 {[%clk
0:02:44.4]} 22... Bxb2 {[%clk 0:02:12.2]} 23. Qh5 {[%clk 0:02:40.8]} 23... h6
{[%clk 0:02:11]} 24. Ne3 {[%clk 0:02:25.2]} 24... Qg5 {[%clk 0:02:01.4]} 25. Qe2
{[%clk 0:02:01.7]} 25... Be5 {[%clk 0:01:57.8]} 26. Rf5 {[%clk 0:01:53.6]} 26...
Qd8 {[%clk 0:01:52.6]} 27. Qf2 {[%clk 0:01:42.4]} 27... Bd4 {[%clk 0:01:50.8]}
28. Qg3 {[%clk 0:01:30.5]} 28... Bxe3 {[%clk 0:01:49.4]} 29. Qxe3 {[%clk
0:01:31.4]} 29... Re8 {[%clk 0:01:46.5]} 30. g3 {[%clk 0:01:29.1]} 30... Qe7
{[%clk 0:01:46]} 31. g4 {[%clk 0:01:20.6]} 31... Ne5 {[%clk 0:01:39]} 32. g5
{[%clk 0:01:18.6]} 32... g6 {[%clk 0:01:30.4]} 33. Rf6 {[%clk 0:00:48.9]} 33...
h5 {[%clk 0:01:20]} 34. Qf3 {[%clk 0:00:32.9]} 34... Nxf3 {[%clk 0:01:19.2]} 0-1

[Event "*** Titled Tuesday Blitz"]
[Site "Chess.com"]
[Date "2021.04.06"]
[Round "8"]
[White "Beca95"]
[Black "GregShahade"]
[Result "1-0"]
[WhiteElo "2918"]
[BlackElo "2727"]
[TimeControl "180+1"]
[EndTime "11:27:43 PDT"]
[Termination "Beca95 won on time"]

1. d4 {[%clk 0:03:00.9]} 1... Nf6 {[%clk 0:03:00]} 2. Nf3 {[%clk 0:03:01.3]}
2... g6 {[%clk 0:03:00.5]} 3. Bg5 {[%clk 0:03:00.6]} 3... Bg7 {[%clk 0:02:59.6]}
4. Nbd2 {[%clk 0:03:00.9]} 4... O-O {[%clk 0:02:57.6]} 5. c3 {[%clk 0:03:00.7]}
5... d6 {[%clk 0:02:57.7]} 6. e3 {[%clk 0:03:00.5]} 6... Nbd7 {[%clk 0:02:52.6]}
7. Bd3 {[%clk 0:03:00.2]} 7... e5 {[%clk 0:02:52.2]} 8. O-O {[%clk 0:03:00.4]}
8... Qe8 {[%clk 0:02:51]} 9. e4 {[%clk 0:03:00.5]} 9... h6 {[%clk 0:02:48.7]}
10. Bh4 {[%clk 0:02:59.6]} 10... Nh5 {[%clk 0:02:48.3]} 11. Re1 {[%clk
0:02:57.6]} 11... a5 {[%clk 0:02:40]} 12. Bg3 {[%clk 0:02:50.1]} 12... Qe7
{[%clk 0:02:33.3]} 13. a4 {[%clk 0:02:46]} 13... b6 {[%clk 0:02:27.4]} 14. Qc2
{[%clk 0:02:43.2]} 14... Bb7 {[%clk 0:02:27.1]} 15. Bb5 {[%clk 0:02:33.3]} 15...
Nxg3 {[%clk 0:02:12.5]} 16. hxg3 {[%clk 0:02:31.1]} 16... Nf6 {[%clk 0:02:08.5]}
17. Rad1 {[%clk 0:02:23.6]} 17... Ng4 {[%clk 0:01:57.6]} 18. Qb3 {[%clk
0:02:06]} 18... h5 {[%clk 0:01:50.5]} 19. Bf1 {[%clk 0:02:04.4]} 19... Bh6
{[%clk 0:01:44.1]} 20. Nc4 {[%clk 0:02:03.5]} 20... Qf6 {[%clk 0:01:28.3]} 21.
dxe5 {[%clk 0:01:56.3]} 21... dxe5 {[%clk 0:01:23.3]} 22. Rd7 {[%clk 0:01:55.4]}
22... Rac8 {[%clk 0:01:16]} 23. Nxb6 {[%clk 0:01:53.7]} 23... cxb6 {[%clk
0:00:42.9]} 24. Rxb7 {[%clk 0:01:52.1]} 24... Rc6 {[%clk 0:00:42.4]} 25. Bc4
{[%clk 0:01:49.3]} 25... Rd6 {[%clk 0:00:34.8]} 26. Bd5 {[%clk 0:01:48.8]} 26...
g5 {[%clk 0:00:20.9]} 27. Rd1 {[%clk 0:01:32.9]} 27... Re6 {[%clk 0:00:03.1]}
28. Bxe6 {[%clk 0:01:29.3]} 28... fxe6 {[%clk 0:00:03.5]} 29. Rd6 {[%clk
0:01:28.3]} 29... Nxf2 {[%clk 0:00:02.4]} 30. Kxf2 {[%clk 0:01:27.2]} 1-0

[Event "*** Titled Tuesday Blitz"]
[Site "Chess.com"]
[Date "2021.04.06"]
[Round "8"]
[White "SirStrateg"]
[Black "Yurovskykh_Oleksandr"]
[Result "1-0"]
[WhiteElo "2646"]
[BlackElo "2532"]
[TimeControl "180+1"]
[EndTime "11:27:44 PDT"]
[Termination "SirStrateg won by resignation"]

1. d4 {[%clk 0:03:00.9]} 1... d5 {[%clk 0:02:59]} 2. Bf4 {[%clk 0:03:00.6]} 2...
c5 {[%clk 0:02:58.3]} 3. e3 {[%clk 0:03:00]} 3... Nc6 {[%clk 0:02:58.3]} 4. c3
{[%clk 0:03:00.7]} 4... Bf5 {[%clk 0:02:56]} 5. Nd2 {[%clk 0:02:49.6]} 5... e6
{[%clk 0:02:55.9]} 6. Ngf3 {[%clk 0:02:42.9]} 6... Bd6 {[%clk 0:02:54]} 7. Bg3
{[%clk 0:02:41.6]} 7... Bxg3 {[%clk 0:02:34.2]} 8. hxg3 {[%clk 0:02:41.4]} 8...
cxd4 {[%clk 0:02:33.7]} 9. exd4 {[%clk 0:02:38.7]} 9... h6 {[%clk 0:02:28.6]}
10. Qb3 {[%clk 0:02:34]} 10... Qc7 {[%clk 0:02:27.8]} 11. Bb5 {[%clk 0:02:25.6]}
11... Nf6 {[%clk 0:02:15.7]} 12. Qa3 {[%clk 0:02:14.2]} 12... Nd7 {[%clk
0:02:07.3]} 13. O-O {[%clk 0:01:53.4]} 13... a6 {[%clk 0:01:48.1]} 14. Rfe1
{[%clk 0:01:52.2]} 14... O-O-O {[%clk 0:01:38.2]} 15. Bxc6 {[%clk 0:01:48.6]}
15... Qxc6 {[%clk 0:01:37]} 16. Qe7 {[%clk 0:01:40.7]} 16... Rhf8 {[%clk
0:01:31.9]} 17. Nh4 {[%clk 0:01:39.6]} 17... Bh7 {[%clk 0:01:09.4]} 18. a4
{[%clk 0:01:30.4]} 18... Qc7 {[%clk 0:00:54]} 19. Rac1 {[%clk 0:01:17.4]} 19...
Nb6 {[%clk 0:00:49.6]} 20. Qa3 {[%clk 0:01:11.5]} 20... Kb8 {[%clk 0:00:49]} 21.
a5 {[%clk 0:01:07.8]} 21... Nc4 {[%clk 0:00:48.3]} 22. Nxc4 {[%clk 0:01:08.2]}
22... dxc4 {[%clk 0:00:38.8]} 23. Nf3 {[%clk 0:01:01.4]} 23... Rd5 {[%clk
0:00:37.5]} 24. Qxf8+ {[%clk 0:01:00.7]} 1-0

[Event "*** Titled Tuesday Blitz"]
[Site "Chess.com"]
[Date "2021.04.06"]
[Round "8"]
[White "annamaja"]
[Black "KubaGepard"]
[Result "0-1"]
[WhiteElo "2270"]
[BlackElo "2391"]
[TimeControl "180+1"]
[EndTime "11:27:44 PDT"]
[Termination "KubaGepard won by resignation"]

1. e4 {[%clk 0:03:00.9]} 1... e5 {[%clk 0:02:58.9]} 2. Nf3 {[%clk 0:03:01.1]}
2... Nc6 {[%clk 0:02:58.6]} 3. Bc4 {[%clk 0:02:57.7]} 3... Bc5 {[%clk
0:02:57.9]} 4. d3 {[%clk 0:02:58]} 4... Nf6 {[%clk 0:02:56]} 5. O-O {[%clk
0:02:58.4]} 5... O-O {[%clk 0:02:54.7]} 6. c3 {[%clk 0:02:58.8]} 6... a6 {[%clk
0:02:54.6]} 7. Bb3 {[%clk 0:02:58.6]} 7... Ba7 {[%clk 0:02:53.5]} 8. Be3 {[%clk
0:02:48.2]} 8... d6 {[%clk 0:02:52.5]} 9. Bxa7 {[%clk 0:02:46.2]} 9... Rxa7
{[%clk 0:02:48.8]} 10. Nbd2 {[%clk 0:02:47.1]} 10... Nh5 {[%clk 0:02:36.3]} 11.
Nxe5 {[%clk 0:02:33.8]} 11... Nxe5 {[%clk 0:02:35.6]} 12. Qxh5 {[%clk 0:02:26]}
12... Bg4 {[%clk 0:02:34.8]} 13. Qxg4 {[%clk 0:01:57.1]} 13... Nxg4 {[%clk
0:02:33.4]} 14. h3 {[%clk 0:01:57.4]} 14... Nf6 {[%clk 0:02:32.3]} 15. f4 {[%clk
0:01:54.2]} 15... a5 {[%clk 0:02:31.8]} 16. Rf3 {[%clk 0:01:50.6]} 16... a4
{[%clk 0:02:31.6]} 17. Bc2 {[%clk 0:01:47.7]} 17... c6 {[%clk 0:02:29.6]} 18. d4
{[%clk 0:01:46.1]} 18... Qb6 {[%clk 0:02:26.8]} 19. Nc4 {[%clk 0:01:40.7]} 19...
Qb5 {[%clk 0:02:26.2]} 20. Bd3 {[%clk 0:01:35.6]} 20... Nxe4 {[%clk 0:02:18.3]}
21. Nxd6 {[%clk 0:01:20.5]} 21... Qxb2 {[%clk 0:02:15.8]} 22. Rb1 {[%clk
0:01:20.6]} 22... Qxc3 {[%clk 0:02:14.6]} 23. Nxe4 {[%clk 0:01:16.3]} 23...
Qxd4+ {[%clk 0:02:14.8]} 24. Kh2 {[%clk 0:01:16.4]} 24... b5 {[%clk 0:02:13]}
25. Rd1 {[%clk 0:01:10.4]} 25... Rd7 {[%clk 0:02:04]} 26. Ng5 {[%clk 0:01:07]}
26... g6 {[%clk 0:01:54.4]} 27. Ne4 {[%clk 0:00:58.4]} 27... Kg7 {[%clk
0:01:51.9]} 28. f5 {[%clk 0:00:56.6]} 28... Qe5+ {[%clk 0:01:49.6]} 29. Ng3
{[%clk 0:00:49]} 29... Rfd8 {[%clk 0:01:48.6]} 30. f6+ {[%clk 0:00:11.7]} 30...
Kf8 {[%clk 0:01:46.4]} 31. h4 {[%clk 0:00:11.3]} 31... h5 {[%clk 0:01:44.5]} 32.
Kh3 {[%clk 0:00:11.2]} 32... c5 {[%clk 0:01:40.4]} 33. Ne4 {[%clk 0:00:04.4]}
33... c4 {[%clk 0:01:35.2]} 0-1

[Event "*** Titled Tuesday Blitz"]
[Site "Chess.com"]
[Date "2021.04.06"]
[Round "8"]
[White "MusicCityMaster"]
[Black "TedBelanoff"]
[Result "1-0"]
[WhiteElo "2381"]
[BlackElo "2108"]
[TimeControl "180+1"]
[EndTime "11:27:46 PDT"]
[Termination "MusicCityMaster won by resignation"]

1. d4 {[%clk 0:03:00.9]} 1... Nf6 {[%clk 0:02:59.6]} 2. c4 {[%clk 0:03:00.3]}
2... g6 {[%clk 0:02:59]} 3. Nc3 {[%clk 0:02:59.7]} 3... d5 {[%clk 0:02:59.4]} 4.
Bf4 {[%clk 0:02:59.2]} 4... Bg7 {[%clk 0:02:59.1]} 5. Rc1 {[%clk 0:02:59.5]}
5... c6 {[%clk 0:02:58.8]} 6. e3 {[%clk 0:02:58]} 6... O-O {[%clk 0:02:58.6]} 7.
Nf3 {[%clk 0:02:58.2]} 7... Nbd7 {[%clk 0:02:58.4]} 8. cxd5 {[%clk 0:02:57.8]}
8... Nxd5 {[%clk 0:02:58.2]} 9. Nxd5 {[%clk 0:02:57.1]} 9... cxd5 {[%clk
0:02:59.1]} 10. Be2 {[%clk 0:02:55.8]} 10... Qa5+ {[%clk 0:02:55.6]} 11. Qd2
{[%clk 0:02:55.7]} 11... Qxa2 {[%clk 0:02:55.6]} 12. O-O {[%clk 0:02:55.9]}
12... Qb3 {[%clk 0:02:48.3]} 13. Rc7 {[%clk 0:02:34.8]} 13... Qb6 {[%clk
0:02:45.7]} 14. Rfc1 {[%clk 0:02:33.4]} 14... Nf6 {[%clk 0:02:41]} 15. Rxe7
{[%clk 0:02:27.3]} 15... Ne4 {[%clk 0:02:39.7]} 16. Qc2 {[%clk 0:02:22.6]} 16...
Bf5 {[%clk 0:02:39.4]} 17. Bd3 {[%clk 0:01:54.4]} 17... Rac8 {[%clk 0:02:37.6]}
18. Qb1 {[%clk 0:01:54.3]} 18... Bf6 {[%clk 0:02:24.9]} 19. Rec7 {[%clk
0:01:53.2]} 19... Rxc7 {[%clk 0:02:18.2]} 20. Bxc7 {[%clk 0:01:53.2]} 20... Qb3
{[%clk 0:02:09.8]} 21. Bf4 {[%clk 0:01:17.3]} 21... Rd8 {[%clk 0:01:56.3]} 22.
h3 {[%clk 0:01:17.3]} 22... b5 {[%clk 0:01:52]} 23. g4 {[%clk 0:01:16.9]} 23...
Be6 {[%clk 0:01:48.5]} 24. Bxe4 {[%clk 0:01:17.1]} 24... dxe4 {[%clk 0:01:49.4]}
25. Nd2 {[%clk 0:01:17.1]} 25... Qa4 {[%clk 0:01:35.3]} 26. Nxe4 {[%clk
0:01:17.1]} 26... Be7 {[%clk 0:01:35.4]} 27. Nc5 {[%clk 0:01:11.1]} 27... Bxc5
{[%clk 0:01:34.2]} 28. Rxc5 {[%clk 0:01:10.9]} 28... a5 {[%clk 0:01:29]} 29. Bh6
{[%clk 0:01:00.9]} 29... Qb4 {[%clk 0:01:23.4]} 30. Qe4 {[%clk 0:00:59.5]} 30...
Qe1+ {[%clk 0:00:57.1]} 31. Kg2 {[%clk 0:00:59.2]} 31... Bc8 {[%clk 0:00:51.6]}
32. Qe5 {[%clk 0:00:40.8]} 32... Bb7+ {[%clk 0:00:49.9]} 33. d5 {[%clk
0:00:40.3]} 1-0

[Event "*** Titled Tuesday Blitz"]
[Site "Chess.com"]
[Date "2021.04.06"]
[Round "8"]
[White "atwalcb"]
[Black "Romadk"]
[Result "1-0"]
[WhiteElo "2472"]
[BlackElo "2346"]
[TimeControl "180+1"]
[EndTime "11:27:48 PDT"]
[Termination "atwalcb won by resignation"]

1. d4 {[%clk 0:03:00.9]} 1... Nf6 {[%clk 0:02:59.6]} 2. Bg5 {[%clk 0:03:00.7]}
2... e6 {[%clk 0:02:56]} 3. e4 {[%clk 0:02:59.2]} 3... h6 {[%clk 0:02:53.7]} 4.
Bxf6 {[%clk 0:02:59.5]} 4... Qxf6 {[%clk 0:02:54.6]} 5. c3 {[%clk 0:02:59.9]}
5... d6 {[%clk 0:02:52.2]} 6. Bd3 {[%clk 0:02:59.6]} 6... Nc6 {[%clk 0:02:50.8]}
7. Ne2 {[%clk 0:02:59.7]} 7... e5 {[%clk 0:02:51.1]} 8. d5 {[%clk 0:02:57.6]}
8... Ne7 {[%clk 0:02:50.8]} 9. Nd2 {[%clk 0:02:55.6]} 9... Ng6 {[%clk
0:02:48.7]} 10. Bb5+ {[%clk 0:02:49.6]} 10... Bd7 {[%clk 0:02:44.7]} 11. Bxd7+
{[%clk 0:02:49]} 11... Kxd7 {[%clk 0:02:45.6]} 12. Qa4+ {[%clk 0:02:47.7]} 12...
Kd8 {[%clk 0:02:40.8]} 13. Ng3 {[%clk 0:02:31.7]} 13... Nf4 {[%clk 0:02:38.9]}
14. O-O-O {[%clk 0:02:27.4]} 14... Nd3+ {[%clk 0:02:31.8]} 15. Kb1 {[%clk
0:02:24.5]} 15... Nc5 {[%clk 0:02:29.7]} 16. Qc4 {[%clk 0:02:05.8]} 16... Qxf2
{[%clk 0:02:00.6]} 17. Rhf1 {[%clk 0:02:03.9]} 17... Qxg2 {[%clk 0:01:50.1]} 18.
Rxf7 {[%clk 0:02:04.1]} 18... Be7 {[%clk 0:01:48.8]} 19. Nf5 {[%clk 0:01:59.7]}
19... Bf6 {[%clk 0:01:47.5]} 20. b4 {[%clk 0:01:58]} 20... Na6 {[%clk
0:01:46.8]} 21. Qb5 {[%clk 0:01:56.1]} 21... Kc8 {[%clk 0:01:29.7]} 22. Qd7+
{[%clk 0:01:46.3]} 22... Kb8 {[%clk 0:01:29.2]} 23. b5 {[%clk 0:01:39.7]} 23...
Qe2 {[%clk 0:01:26.4]} 24. Kc2 {[%clk 0:01:27]} 24... Rc8 {[%clk 0:01:05.4]} 25.
Nxd6 {[%clk 0:01:05.2]} 25... Rd8 {[%clk 0:00:50.4]} 26. Rxf6 {[%clk 0:01:05.3]}
26... Nb4+ {[%clk 0:00:37.5]} 27. cxb4 {[%clk 0:01:01.4]} 1-0

[Event "*** Titled Tuesday Blitz"]
[Site "Chess.com"]
[Date "2021.04.06"]
[Round "8"]
[White "Sjakkerntobi"]
[Black "HanSchut"]
[Result "1-0"]
[WhiteElo "2389"]
[BlackElo "2265"]
[TimeControl "180+1"]
[EndTime "11:27:51 PDT"]
[Termination "Sjakkerntobi won by resignation"]

1. e4 {[%clk 0:03:00.9]} 1... c5 {[%clk 0:02:58.8]} 2. Nf3 {[%clk 0:02:59.9]}
2... d6 {[%clk 0:02:59]} 3. d4 {[%clk 0:03:00.6]} 3... cxd4 {[%clk 0:02:59.8]}
4. Qxd4 {[%clk 0:03:01.4]} 4... Nc6 {[%clk 0:02:58.8]} 5. Bb5 {[%clk 0:03:01.5]}
5... Bd7 {[%clk 0:02:59.4]} 6. Bxc6 {[%clk 0:03:02.2]} 6... Bxc6 {[%clk
0:03:00.3]} 7. Nc3 {[%clk 0:03:02.9]} 7... b5 {[%clk 0:02:57.1]} 8. Bg5 {[%clk
0:02:58.2]} 8... h6 {[%clk 0:02:52.3]} 9. Bh4 {[%clk 0:02:58]} 9... Qa5 {[%clk
0:02:20.7]} 10. O-O {[%clk 0:02:43.2]} 10... e5 {[%clk 0:02:16.6]} 11. Qd3
{[%clk 0:02:38.6]} 11... g5 {[%clk 0:02:15.7]} 12. Bg3 {[%clk 0:02:36.5]} 12...
Nf6 {[%clk 0:02:12]} 13. Nd5 {[%clk 0:02:21.9]} 13... Bxd5 {[%clk 0:02:01.4]}
14. exd5 {[%clk 0:02:22.8]} 14... b4 {[%clk 0:01:50.1]} 15. Rad1 {[%clk
0:02:16.3]} 15... Be7 {[%clk 0:01:24]} 16. Rfe1 {[%clk 0:02:07.7]} 16... O-O
{[%clk 0:01:19.1]} 17. h4 {[%clk 0:02:04.2]} 17... Nh5 {[%clk 0:00:43.2]} 18.
hxg5 {[%clk 0:02:00.5]} 18... Nxg3 {[%clk 0:00:43.1]} 19. fxg3 {[%clk
0:02:01.4]} 19... hxg5 {[%clk 0:00:43.3]} 20. Qf5 {[%clk 0:02:01.2]} 20... Qd8
{[%clk 0:00:27.3]} 21. g4 {[%clk 0:01:42.5]} 21... Qc8 {[%clk 0:00:21.5]} 22.
Qe4 {[%clk 0:01:39]} 22... Qc5+ {[%clk 0:00:16.9]} 23. Kh2 {[%clk 0:01:38.3]}
23... Rfc8 {[%clk 0:00:16.5]} 24. Re2 {[%clk 0:01:33.7]} 24... Kg7 {[%clk
0:00:16.8]} 25. Qf5 {[%clk 0:01:31.4]} 25... Rh8+ {[%clk 0:00:15.7]} 26. Kg3
{[%clk 0:01:32]} 26... f6 {[%clk 0:00:15.4]} 27. Nd4 {[%clk 0:01:28]} 27... Kf7
{[%clk 0:00:11.5]} 28. Qe6+ {[%clk 0:01:27.3]} 28... Kf8 {[%clk 0:00:12]} 29.
Nf5 {[%clk 0:01:27.8]} 29... Qc7 {[%clk 0:00:11.4]} 30. Rf1 {[%clk 0:01:23.1]}
30... Re8 {[%clk 0:00:10.9]} 31. Nxe7 {[%clk 0:01:21.1]} 31... Rxe7 {[%clk
0:00:11.3]} 32. Qxf6+ {[%clk 0:01:17.5]} 32... Rf7 {[%clk 0:00:12.2]} 33. Qxh8+
{[%clk 0:01:16.9]} 33... Ke7 {[%clk 0:00:11.7]} 34. Rxf7+ {[%clk 0:01:17.6]} 1-0

[Event "*** Titled Tuesday Blitz"]
[Site "Chess.com"]
[Date "2021.04.06"]
[Round "8"]
[White "dmjjmd"]
[Black "Caterpiller35"]
[Result "1-0"]
[WhiteElo "2275"]
[BlackElo "2446"]
[TimeControl "180+1"]
[EndTime "11:27:54 PDT"]
[Termination "dmjjmd won by resignation"]

1. e4 {[%clk 0:03:00.9]} 1... c5 {[%clk 0:02:59.5]} 2. Nf3 {[%clk 0:03:01]} 2...
Nc6 {[%clk 0:02:59.9]} 3. Bb5 {[%clk 0:03:00.8]} 3... g6 {[%clk 0:02:59.7]} 4.
Bxc6 {[%clk 0:03:00.1]} 4... bxc6 {[%clk 0:03:00.6]} 5. O-O {[%clk 0:02:57.8]}
5... Bg7 {[%clk 0:03:00.4]} 6. Re1 {[%clk 0:02:58]} 6... Nh6 {[%clk 0:02:59.7]}
7. h3 {[%clk 0:02:57.4]} 7... O-O {[%clk 0:02:59.9]} 8. c3 {[%clk 0:02:56.6]}
8... f5 {[%clk 0:02:57.1]} 9. e5 {[%clk 0:02:55.4]} 9... d6 {[%clk 0:02:56.7]}
10. d4 {[%clk 0:02:55.1]} 10... cxd4 {[%clk 0:02:57.1]} 11. cxd4 {[%clk
0:02:54]} 11... Rb8 {[%clk 0:02:57.5]} 12. Nc3 {[%clk 0:02:53.9]} 12... c5
{[%clk 0:02:55]} 13. dxc5 {[%clk 0:02:47.7]} 13... dxc5 {[%clk 0:02:52.1]} 14.
Qa4 {[%clk 0:02:47.6]} 14... Bb7 {[%clk 0:02:44]} 15. Qc4+ {[%clk 0:02:24.2]}
15... Kh8 {[%clk 0:02:42.8]} 16. Qxc5 {[%clk 0:02:24.7]} 16... Bxf3 {[%clk
0:02:41.4]} 17. gxf3 {[%clk 0:02:25.6]} 17... Nf7 {[%clk 0:02:35.9]} 18. f4
{[%clk 0:02:09.6]} 18... Qb6 {[%clk 0:01:04.5]} 19. Qxb6 {[%clk 0:02:02.2]}
19... Rxb6 {[%clk 0:01:03]} 20. Re2 {[%clk 0:01:47.3]} 20... Rd8 {[%clk
0:01:01.6]} 21. Be3 {[%clk 0:01:46.3]} 21... g5 {[%clk 0:00:58.6]} 22. Bxb6
{[%clk 0:01:45.4]} 22... axb6 {[%clk 0:00:59.5]} 23. e6 {[%clk 0:01:39.8]} 23...
Nd6 {[%clk 0:00:55.1]} 24. fxg5 {[%clk 0:01:39.5]} 24... Bxc3 {[%clk 0:00:52.4]}
25. bxc3 {[%clk 0:01:39.4]} 25... Ne4 {[%clk 0:00:53.3]} 26. h4 {[%clk
0:01:32.1]} 26... Nxc3 {[%clk 0:00:50.6]} 27. Re5 {[%clk 0:01:30.8]} 27... f4
{[%clk 0:00:48]} 28. Rf5 {[%clk 0:01:29.9]} 28... Kg7 {[%clk 0:00:48]} 29. h5
{[%clk 0:01:20.9]} 29... Rd2 {[%clk 0:00:42.7]} 30. Rf7+ {[%clk 0:01:18.6]}
30... Kg8 {[%clk 0:00:42.6]} 31. Kg2 {[%clk 0:01:09.4]} 31... Rd5 {[%clk
0:00:42]} 32. Rc1 {[%clk 0:00:58.8]} 32... Rxg5+ {[%clk 0:00:38.1]} 33. Kf3
{[%clk 0:00:58.9]} 33... Rc5 {[%clk 0:00:38.1]} 34. Rg1+ {[%clk 0:00:58.5]} 1-0